bitfinex/quotes_SOLUSD_20251118
["timestamp","ask_amount","ask_price","bid_price","bid_amount"]
[1763468355303,4.21449257,137.96,137.9,4.21449257]
[1763468355618,4.21449257,137.92,137.89,0.2]
[1763468355918,4.21449257,137.92,137.91,4.34]
[1763468356118,4.21449257,137.93,137.91,4.34]
[1763468356906,4.89449257,137.93,137.91,4.34]
[1763468357120,4.21449257,137.92,137.89,0.88]
[1763468357337,4.21449257,137.9,137.89,0.2]
[1763468357825,4.89449257,137.9,137.89,0.2]
[1763468358611,0.68,137.9,137.89,0.2]
[1763468358811,4.21449257,137.9,137.89,0.2]
[1763468359128,4.21449257,137.92,137.89,0.88]
[1763468360326,0.69,137.94,137.89,0.2]
[1763468360633,4.21449257,137.91,137.89,4.54]
[1763468360842,11.76671542,137.91,137.89,4.54]
[1763468362027,11.76671542,137.91,137.89,5.19]
[1763468362230,11.76671542,137.91,137.89,4.54]
[1763468363218,11.76671542,137.92,137.89,5.19]
[1763468363837,0.69,137.93,137.89,5.19]
[1763468364006,11.76671542,137.92,137.89,5.19]
[1763468364427,11.76671542,137.92,137.89,4.54]
[1763468364632,11.76671542,137.92,137.89,5.19]
[1763468365827,11.76671542,137.92,137.89,4.54]
[1763468366035,11.76671542,137.9,137.89,4.54]
[1763468366421,12.45671542,137.9,137.89,4.54]
[1763468367426,11.76671542,137.91,137.89,5.19]
[1763468367635,11.76671542,137.92,137.89,5.19]
[1763468368232,21.55554311,137.9,137.89,0.2]
[1763468368429,11.76671542,137.9,137.89,0.2]
[1763468368815,12.45671542,137.9,137.89,0.2]
[1763468369021,11.76671542,137.9,137.89,0.2]
[1763468369930,11.76671542,137.9,137.89,4.54]
[1763468372039,11.76671542,137.9,137.89,0.2]
[1763468372239,11.76671542,137.9,137.89,4.54]
[1763468373153,11.76671542,137.9,137.89,0.2]
[1763468373366,11.76671542,137.9,137.89,4.54]
[1763468374642,11.76671542,137.9,137.89,0.2]
[1763468374839,11.76671542,137.9,137.89,4.54]
[1763468375042,11.76671542,137.9,137.89,0.2]
[1763468375246,11.76671542,137.9,137.89,4.54]
[1763468376046,12.45671542,137.9,137.89,4.54]
[1763468376649,11.76671542,137.9,137.89,4.54]
[1763468377232,11.76671542,137.9,137.89,0.2]
[1763468377422,11.76671542,137.9,137.89,4.54]
[1763468378152,11.76671542,137.9,137.89,0.2]
[1763468378730,12.45671542,137.9,137.89,4.54]
[1763468379053,12.45671542,137.9,137.89,0.2]
[1763468379254,12.45671542,137.9,137.89,4.54]
[1763468379466,11.76671542,137.91,137.89,5.19]
[1763468379628,11.76671542,137.91,137.89,4.54]
[1763468379829,11.76671542,137.93,137.9,0.65]
[1763468380052,11.76671542,137.93,137.91,4.34]
[1763468380553,11.76671542,137.93,137.91,4.99]
[1763468380869,4.22234697,137.93,137.91,4.99]
[1763468381442,4.22234697,137.93,137.91,4.34]
[1763468382071,4.22234697,137.94,137.92,0.72]
[1763468382274,4.22234697,137.95,137.93,4.34]
[1763468382575,4.22234697,137.94,137.93,4.34]
[1763468385377,163.5,137.99,137.93,5.06]
[1763468385544,4.22234697,137.98,137.94,0.72]
[1763468385746,4.22234697,137.97,137.94,0.72]
[1763468385965,4.22234697,137.97,137.95,4.34]
[1763468386278,4.22234697,137.96,137.94,0.72]
[1763468386449,4.22234697,137.96,137.95,4.34]
[1763468386651,0.65,137.98,137.95,4.34]
[1763468386850,4.22234697,137.96,137.95,4.34]
[1763468388375,0.65,137.98,137.95,4.34]
[1763468388556,4.22234697,137.96,137.95,4.34]
[1763468388880,0.65,138.0,137.95,5.06]
[1763468389192,4.22234697,137.98,137.96,0.72]
[1763468389593,4.22234697,137.97,137.96,0.72]
[1763468389758,4.22234697,137.97,137.94,0.72]
[1763468389952,4.87234697,138.0,137.95,4.34]
[1763468389953,4.22234697,137.96,137.95,4.34]
[1763468390793,2.70113563,137.96,137.95,4.34]
[1763468391087,10.43882769,138.0,137.95,5.06]
[1763468391379,2.70113563,137.98,137.95,5.06]
[1763468391567,2.70113563,137.97,137.95,5.06]
[1763468391879,2.70113563,137.98,137.96,0.72]
[1763468393602,28.55978769,138.02,137.96,0.72]
[1763468393763,2.70113563,137.99,137.96,0.72]
[1763468394172,2.70113563,138.0,137.96,0.72]
[1763468394674,2.70113563,138.01,137.96,3.42113563]
[1763468395184,28.65978769,138.05,137.97,3.42113563]
[1763468395383,2.70113563,138.02,137.98,18.12096]
[1763468395557,10.53882769,138.05,137.99,4.34]
[1763468395760,2.70113563,138.01,137.99,5.06]
[1763468398377,2.70113563,138.01,138.0,0.72]
[1763468398588,2.70113563,138.02,138.0,0.72]
[1763468398958,2.70113563,138.03,138.0,0.72]
[1763468399158,0.75,138.05,138.0,0.72]
[1763468399363,2.70113563,138.03,138.0,0.72]
[1763468399770,18.22096,138.05,138.0,0.72]
[1763468399969,2.70113563,138.03,138.0,0.72]
[1763468400361,18.87096,138.05,137.98,2.70113563]
[1763468400362,0.65,138.02,138.01,4.34]
[1763468400684,2.70113563,138.02,138.01,4.34]
[1763468401064,0.65,138.03,138.01,4.34]
[1763468401259,2.70113563,138.02,138.01,4.34]
[1763468401470,28.00978769,138.05,138.01,5.06]
[1763468401666,2.70113563,138.04,138.02,0.72]
[1763468402488,2.80113563,138.05,138.02,0.72]
[1763468403401,0.1,138.05,138.02,0.72]
[1763468403578,2.80113563,138.05,138.02,0.72]
[1763468404768,0.1,138.05,138.02,0.72]
[1763468404968,0.1,138.05,138.03,2.70113563]
[1763468405496,0.1,138.05,138.04,0.72]
[1763468407089,0.1,138.05,138.04,5.06]
[1763468407597,0.1,138.05,138.04,0.72]
[1763468407776,0.1,138.05,138.04,7.76113563]
[1763468408173,0.1,138.05,138.04,5.06]
[1763468409085,0.1,138.05,138.04,0.72]
[1763468409287,0.1,138.05,138.04,5.06]
[1763468414174,0.1,138.05,138.04,0.72]
[1763468414490,0.1,138.05,138.04,5.06]
[1763468415168,0.1,138.05,138.04,5.0]
[1763468416594,0.1,138.05,138.04,7.70113563]
[1763468418706,0.1,138.12,138.09,2.70113563]
[1763468418878,0.1,138.12,138.1,4.34]
[1763468419383,0.1,138.12,138.11,0.66]
[1763468421293,0.1,138.12,138.11,4.34]
[1763468421815,0.1,138.12,138.11,5.0]
[1763468423886,0.1,138.12,138.11,4.34]
[1763468424087,0.1,138.12,137.95,155.94298737]
[1763468424088,27.90978769,138.11,138.04,0.66]
[1763468424283,2.70113563,138.05,137.96,0.66]
[1763468424508,2.70113563,138.04,137.97,2.18]
[1763468424694,2.70113563,138.03,137.99,18.12096]
[1763468424891,2.70113563,138.04,138.0,4.34]
[1763468425093,2.70113563,138.04,138.0,5.0]
[1763468425286,2.70113563,138.02,137.96,2.70113563]
[1763468425488,38.71433021,138.08,137.97,4.34]
[1763468425489,2.70113563,138.01,137.97,4.34]
[1763468425792,2.70113563,138.01,137.97,5.0]
[1763468425992,2.70113563,138.01,137.98,0.66]
[1763468426315,2.70113563,138.02,137.98,0.66]
[1763468426512,0.72,138.05,137.98,0.66]
[1763468426806,2.70113563,138.02,138.0,2.90518211]
[1763468427012,2.70113563,138.03,138.01,4.34]
[1763468427511,0.72,138.05,138.01,5.0]
[1763468427721,2.70113563,138.03,138.01,5.0]
[1763468428213,2.70113563,138.03,138.01,4.34]
[1763468428597,2.70113563,138.05,138.01,5.0]
[1763468428909,2.70113563,138.04,138.01,5.0]
[1763468429288,2.70113563,138.05,138.02,0.66]
[1763468429898,2.70113563,138.04,138.01,4.34]
[1763468430087,0.72,138.07,138.01,4.34]
[1763468430287,2.70113563,138.02,138.0,2.90518211]
[1763468430498,9.78882769,138.06,138.01,4.34]
[1763468430805,10.50882769,138.06,138.02,4.34]
[1763468431004,0.72,138.05,138.02,4.34]
[1763468431490,2.70113563,138.04,138.02,4.34]
[1763468431815,2.70113563,138.05,138.02,5.0]
[1763468432116,0.72,138.07,138.02,5.0]
[1763468432316,2.70113563,138.05,138.03,0.66]
[1763468432522,18.12096,138.08,138.03,0.66]
[1763468432719,2.70113563,138.07,138.03,0.66]
[1763468433710,2.70113563,138.06,138.03,0.66]
[1763468434797,18.84096,138.08,138.03,0.66]
[1763468435120,2.70113563,138.06,138.04,4.34]
[1763468435808,2.70113563,138.07,138.04,5.0]
[1763468436010,0.72,138.08,138.04,5.0]
[1763468436208,18.12096,138.1,138.04,4.34]
[1763468436522,2.70113563,138.07,138.04,4.34]
[1763468436916,2.70113563,138.07,138.04,5.0]
[1763468438615,18.12096,138.1,138.04,4.34]
[1763468438804,0.1,138.12,138.06,2.70113563]
[1763468439002,0.1,138.12,138.09,2.70113563]
[1763468439224,0.1,138.12,138.1,2.70113563]
[1763468439524,0.1,138.12,138.11,5.0]
[1763468440100,0.1,138.12,138.08,0.66]
[1763468440442,2.70113563,138.1,138.09,4.34]
[1763468440900,3.42113563,138.1,138.09,4.34]
[1763468441102,0.72,138.1,138.09,4.34]
[1763468441301,0.1,138.12,138.09,4.34]
[1763468441500,2.70113563,138.11,138.09,4.34]
[1763468441722,2.70113563,138.1,138.09,4.34]
[1763468442822,7.01974698,138.1,138.09,4.34]
[1763468443125,7.71974698,138.1,138.01,9.78882769]
[1763468443436,7.01974698,138.04,138.02,4.34]
[1763468443602,28.60978769,138.09,138.02,4.34]
[1763468443603,7.01974698,138.03,138.02,4.34]
[1763468444623,7.01974698,138.03,138.0,2.90518211]
[1763468444826,0.7,138.02,138.0,2.90518211]
[1763468445002,7.01974698,138.01,138.0,7.24518211]
[1763468445335,7.01974698,138.01,138.0,2.90518211]
[1763468445509,7.71974698,138.01,138.0,2.90518211]
[1763468445999,17.50857467,138.01,138.0,2.90518211]
[1763468447426,10.48882769,138.01,138.0,2.90518211]
[1763468447637,7.01974698,138.01,138.0,2.90518211]
[1763468449341,7.01974698,138.01,138.0,7.24518211]
[1763468450953,11.7506757,138.01,138.0,7.24518211]
[1763468451340,22.23950339,138.01,138.0,2.90518211]
[1763468452050,12.4506757,138.01,138.0,2.90518211]
[1763468452558,11.7506757,138.01,138.0,2.90518211]
[1763468453068,12.4506757,138.01,138.0,2.90518211]
[1763468453427,18.82096,138.01,138.0,2.90518211]
[1763468453650,29.8716357,138.01,138.0,2.90518211]
[1763468453832,30.5716357,138.01,138.0,2.90518211]
[1763468454148,40.36046339,138.01,138.0,2.90518211]
[1763468456153,0.7,138.01,138.0,2.90518211]
[1763468456329,11.7506757,138.01,138.0,2.90518211]
[1763468456525,29.8716357,138.01,138.0,2.90518211]
[1763468459932,40.36046339,138.01,138.0,2.90518211]
[1763468462060,40.36046339,138.01,137.92,18.12096]
[1763468462061,18.12096,137.98,137.93,4.34]
[1763468462235,11.7506757,137.94,137.93,4.34]
[1763468462555,11.7506757,137.94,137.92,4.34]
[1763468462765,0.7,137.97,137.92,4.34]
[1763468462766,11.7506757,137.93,137.92,4.34]
[1763468463629,175.2506757,138.0,137.92,5.0]
[1763468463630,18.12096,137.99,137.92,5.0]
[1763468463833,11.7506757,137.96,137.93,0.66]
[1763468464565,11.7506757,137.96,137.94,4.34]
[1763468464956,11.7506757,137.96,137.94,5.0]
[1763468465841,18.12096,137.98,137.95,0.66]
[1763468466040,29.8716357,137.98,137.95,0.66]
[1763468466441,11.7506757,137.97,137.95,0.66]
[1763468467445,11.7506757,137.96,137.94,4.34]
[1763468467760,11.7506757,137.95,137.92,0.66]
[1763468467962,11.7506757,137.93,137.92,0.66]
[1763468468258,11.7506757,137.93,137.92,5.0]
[1763468468644,11.7506757,137.94,137.92,5.0]
[1763468468843,11.7506757,137.94,137.93,0.66]
[1763468469040,120.82096,138.0,137.93,0.66]
[1763468469246,11.7506757,137.98,137.93,12.4106757]
[1763468469760,11.7506757,137.99,137.94,12.4106757]
[1763468469942,11.7506757,138.0,137.95,11.7506757]
[1763468470265,11.7506757,137.99,137.96,4.34]
[1763468470563,11.7506757,137.99,137.96,5.0]
[1763468471078,11.7506757,137.99,137.97,0.66]
[1763468471364,11.7506757,138.01,137.97,0.66]
[1763468471571,11.7506757,138.03,137.98,11.7506757]
[1763468472072,11.7506757,138.02,137.99,0.72]
[1763468472371,11.7506757,138.01,138.0,4.34]
[1763468473169,11.7506757,138.01,138.0,3.84]
[1763468473371,11.7506757,138.03,138.0,4.56]
[1763468473666,11.7506757,138.02,138.0,4.56]
[1763468474057,11.7506757,138.01,138.0,4.56]
[1763468474257,11.7506757,138.01,137.98,0.72]
[1763468474456,11.7506757,138.0,137.99,4.34]
[1763468475264,11.7506757,138.01,137.99,5.06]
[1763468475461,11.7506757,138.01,137.99,4.34]
[1763468475653,11.7506757,138.02,138.0,0.72]
[1763468476270,11.7506757,138.04,138.0,0.72]
[1763468476463,18.12096,138.06,138.0,0.72]
[1763468476464,11.7506757,138.03,138.0,0.72]
[1763468476663,11.7506757,138.02,137.99,4.34]
[1763468476871,11.7506757,138.02,137.99,5.06]
[1763468477071,0.67,138.05,138.0,0.72]
[1763468477072,11.7506757,138.03,138.0,0.72]
[1763468477685,11.7506757,138.04,138.0,0.72]
[1763468478488,11.7506757,138.05,138.0,0.72]
[1763468478688,11.7506757,138.05,138.0,12.4706757]
[1763468478862,18.12096,138.08,138.0,12.4706757]
[1763468479058,11.7506757,138.06,138.01,12.4706757]
[1763468479263,11.7506757,138.07,138.02,16.0906757]
[1763468479565,11.7506757,138.08,138.03,11.7506757]
[1763468479777,11.7506757,138.08,138.04,0.72]
[1763468479978,11.7506757,138.08,138.05,4.34]
[1763468480489,11.7506757,138.08,138.05,5.04]
[1763468480790,11.7506757,138.08,138.06,0.7]
[1763468481322,11.7506757,138.11,138.06,12.4506757]
[1763468481784,11.7506757,138.07,138.04,0.7]
[1763468481985,11.7506757,138.06,138.05,4.34]
[1763468482173,11.7506757,138.06,138.02,18.12096]
[1763468482372,11.7506757,138.03,137.99,0.7]
[1763468482690,0.72,138.06,138.0,4.34]
[1763468482691,11.7506757,138.02,138.0,4.34]
[1763468482992,11.7506757,138.03,138.0,4.34]
[1763468483189,11.7506757,138.03,138.0,5.04]
[1763468483376,11.7506757,138.03,138.01,0.7]
[1763468484096,11.7506757,138.05,138.01,0.7]
[1763468484293,11.7506757,138.04,138.01,0.7]
[1763468484493,11.7506757,138.02,137.98,18.12096]
[1763468484688,9.78882769,138.05,138.01,4.34]
[1763468484883,10.50882769,138.05,138.01,4.34]
[1763468485108,0.72,138.04,138.01,4.34]
[1763468485785,11.7506757,138.02,138.01,4.34]
[1763468487709,9.78882769,138.05,138.01,4.34]
[1763468487912,11.7506757,138.03,138.01,4.34]
[1763468488116,11.7506757,138.02,138.01,4.34]
[1763468488494,11.7506757,138.02,138.01,5.04]
[1763468489925,11.7506757,138.02,138.01,4.34]
[1763468490091,12.4706757,138.02,137.96,0.7]
[1763468490290,11.7506757,137.98,137.97,4.34]
[1763468490700,12.4706757,137.98,137.97,4.34]
[1763468491186,22.25950339,137.98,137.91,0.7]
[1763468491389,11.7506757,137.93,137.92,4.34]
[1763468491590,11.7506757,137.93,137.91,0.7]
[1763468491790,9.78882769,137.98,137.89,0.9]
[1763468491791,11.7506757,137.92,137.89,0.9]
[1763468491991,11.7506757,137.92,137.9,4.34]
[1763468492190,11.7506757,137.92,137.9,5.04]
[1763468493248,11.7506757,137.93,137.9,4.34]
[1763468493425,11.7506757,137.93,137.91,0.7]
[1763468493813,12.4706757,137.93,137.89,18.32096]
[1763468494015,11.7506757,137.91,137.9,4.34]
[1763468494327,18.12096,137.95,137.9,5.04]
[1763468494531,11.7506757,137.91,137.9,5.04]
[1763468495113,11.7506757,137.93,137.9,5.04]
[1763468495352,11.7506757,137.94,137.91,0.7]
[1763468495916,11.7506757,137.93,137.91,0.7]
[1763468497114,11.7506757,138.0,137.91,0.7]
[1763468497115,11.7506757,137.96,137.91,0.7]
[1763468497315,0.72,138.0,137.93,18.12096]
[1763468497512,11.7506757,137.97,137.94,4.34]
[1763468497722,11.7506757,137.98,137.94,5.04]
[1763468498025,11.7506757,137.98,137.95,0.7]
[1763468498739,11.7506757,137.97,137.95,0.7]
[1763468501527,11.7506757,137.96,137.93,18.12096]
[1763468501735,11.7506757,137.94,137.92,18.12096]
[1763468501935,11.7506757,137.94,137.93,4.34]
[1763468502647,11.7506757,137.95,137.93,5.03]
[1763468503951,11.7506757,137.94,137.9,18.81096]
[1763468504146,11.7506757,137.93,137.91,4.34]
[1763468504335,11.7506757,137.93,137.9,18.81096]
[1763468504336,11.7506757,137.93,137.9,0.69]
[1763468504538,11.7506757,137.93,137.91,5.03]
[1763468505332,18.12096,137.98,137.92,0.69]
[1763468505534,9.78882769,137.99,137.92,0.69]
[1763468505535,11.7506757,137.96,137.92,0.69]
[1763468505933,0.65,137.99,137.92,0.69]
[1763468506246,11.7506757,137.96,137.92,0.69]
[1763468507038,0.65,137.99,137.92,0.69]
[1763468507244,11.7506757,137.96,137.92,0.69]
[1763468507833,0.65,137.99,137.92,0.69]
[1763468508036,11.7506757,137.97,137.92,0.69]
[1763468509948,18.77096,138.0,137.92,12.4406757]
[1763468510165,11.7506757,137.97,137.92,12.4406757]
[1763468510336,11.7506757,137.97,137.93,0.69]
[1763468510537,11.7506757,137.97,137.94,4.34]
[1763468511034,11.7506757,137.98,137.95,0.69]
[1763468512141,11.7506757,137.97,137.95,0.69]
[1763468512967,7.03285787,137.97,137.95,0.69]
[1763468513643,7.03285787,137.97,137.94,4.34]
[1763468513839,7.03285787,137.97,137.94,5.03]
[1763468514166,18.12096,138.0,137.94,4.34]
[1763468514350,18.12096,138.0,137.95,0.69]
[1763468514351,7.03285787,137.98,137.95,0.69]
[1763468514964,7.03285787,137.99,137.95,0.69]
[1763468516864,7.03285787,137.99,137.96,4.34]
[1763468517769,7.03285787,137.99,137.97,0.69]
[1763468518470,7.03285787,137.99,137.91,81.12096]
[1763468518667,7.03285787,137.98,137.93,7.03285787]
[1763468519165,7.03285787,137.97,137.94,0.69]
[1763468519360,7.03285787,137.97,137.95,4.34]
[1763468519761,7.03285787,137.97,137.95,5.03]
[1763468520066,7.03285787,137.97,137.96,0.69]
[1763468520562,7.03285787,137.99,137.96,0.69]
[1763468521042,7.03285787,137.99,137.95,4.34]
[1763468521043,7.68285787,137.99,137.95,4.34]
[1763468521243,7.03285787,137.97,137.95,4.34]
[1763468521678,0.65,138.01,137.96,0.69]
[1763468521967,7.03285787,137.98,137.95,5.03]
[1763468522366,7.03285787,137.98,137.96,0.69]
[1763468523345,7.03285787,137.99,137.96,0.69]
[1763468523877,7.03285787,138.01,137.96,0.69]
[1763468524047,7.03285787,138.01,137.96,25.84381787]
[1763468524248,7.03285787,138.02,137.97,7.72285787]
[1763468524562,7.03285787,138.02,137.98,4.34]
[1763468524747,7.03285787,138.02,137.98,5.03]
[1763468525065,7.03285787,138.02,137.99,0.69]
[1763468527060,7.03285787,138.03,137.99,0.69]
[1763468527663,7.03285787,138.02,137.99,0.69]
[1763468528562,0.65,138.04,137.99,0.69]
[1763468528764,7.03285787,138.03,137.99,0.69]
[1763468530057,0.65,138.09,138.02,7.03285787]
[1763468530266,7.03285787,138.07,138.03,4.34]
[1763468530576,7.03285787,138.07,138.03,5.03]
[1763468530773,2.6966412,138.07,138.04,0.69]
[1763468531860,2.6966412,138.05,138.01,0.69]
[1763468532059,2.6966412,138.05,138.02,4.34]
[1763468532482,2.6966412,138.05,138.02,5.04]
[1763468532659,2.6966412,138.06,138.03,0.7]
[1763468532850,2.6966412,138.05,138.02,5.04]
[1763468533079,2.6966412,138.05,138.03,4.34]
[1763468534668,3.4166412,138.06,138.03,4.34]
[1763468534878,2.6966412,138.05,138.03,4.34]
[1763468535385,3.4166412,138.06,138.03,4.34]
[1763468536684,2.6966412,138.05,138.03,4.34]
[1763468537284,2.6966412,138.04,138.03,4.34]
[1763468537588,2.6966412,138.05,138.03,4.34]
[1763468537788,0.72,138.11,138.04,0.7]
[1763468538088,2.6966412,138.1,138.05,2.6966412]
[1763468538587,0.72,138.11,138.06,3.3966412]
[1763468538588,3.4166412,138.11,138.06,3.3966412]
[1763468538762,7.73944495,138.11,138.07,4.34]
[1763468538962,7.73944495,138.11,138.07,5.04]
[1763468539161,0.72,138.11,138.07,5.04]
[1763468539371,18.22096,138.12,138.08,0.7]
[1763468539570,7.01944495,138.11,138.08,0.7]
[1763468539769,7.01944495,138.1,138.07,4.34]
[1763468539971,7.01944495,138.1,138.08,4.34]
[1763468540176,18.89096,138.12,138.08,4.34]
[1763468540391,7.01944495,138.1,138.08,4.34]
[1763468540588,0.67,138.11,138.04,18.84096]
[1763468540589,7.01944495,138.09,138.04,18.84096]
[1763468540786,7.01944495,138.06,138.05,4.34]
[1763468540989,0.67,138.11,138.05,4.34]
[1763468541166,7.01944495,138.07,138.05,4.34]
[1763468541368,7.01944495,138.06,138.01,0.72]
[1763468541677,7.01944495,138.03,138.02,4.34]
[1763468541881,7.01944495,138.03,137.99,0.72]
[1763468542065,7.01944495,138.01,138.0,4.32]
[1763468543466,7.01944495,138.01,137.95,7.01944495]
[1763468543671,7.01944495,138.0,137.96,5.04]
[1763468544177,7.01944495,138.0,137.97,0.72]
[1763468544391,7.01944495,138.0,137.98,4.32]
[1763468544694,7.01944495,137.99,137.94,0.72]
[1763468544996,0.67,138.0,137.94,0.72]
[1763468544997,7.01944495,137.98,137.95,5.04]
[1763468545174,7.01944495,137.98,137.95,0.72]
[1763468545373,7.01944495,137.98,137.96,4.32]
[1763468545594,27.90978769,138.05,137.96,5.04]
[1763468545595,7.01944495,137.99,137.96,5.04]
[1763468546401,7.01944495,137.98,137.96,5.04]
[1763468546897,7.01944495,137.98,137.96,4.32]
[1763468547402,7.01944495,137.98,137.97,4.34]
[1763468549305,7.68944495,137.98,137.93,18.12096]
[1763468549502,7.01944495,137.95,137.92,0.72]
[1763468549704,7.01944495,137.95,137.93,4.34]
[1763468550896,7.01944495,137.95,137.93,5.06]
[1763468551094,7.01944495,137.95,137.92,18.12096]
[1763468551292,7.01944495,137.94,137.93,4.34]
[1763468551521,7.01944495,137.95,137.93,4.34]
[1763468551709,27.90978769,138.02,137.93,0.72]
[1763468551710,7.01944495,137.96,137.93,0.72]
[1763468551886,7.01944495,137.96,137.94,4.34]
[1763468552625,27.90978769,138.02,137.95,0.72]
[1763468552626,7.01944495,137.99,137.95,0.72]
[1763468552915,7.01944495,138.0,137.95,0.72]
[1763468553116,7.01944495,137.99,137.95,0.72]
[1763468553490,7.01944495,137.98,137.95,0.72]
[1763468554402,7.01944495,137.99,137.95,0.72]
[1763468554608,7.01944495,138.0,137.95,0.72]
[1763468555185,18.79096,138.02,137.95,0.72]
[1763468555186,7.68944495,137.99,137.96,4.34]
[1763468555386,7.01944495,137.98,137.96,4.34]
[1763468556403,7.01944495,137.98,137.95,0.72]
[1763468556600,7.01944495,137.98,137.96,4.34]
[1763468556987,7.01944495,137.97,137.96,4.34]
[1763468557186,18.79096,138.01,137.96,4.34]
[1763468557409,7.01944495,137.97,137.91,7.01944495]
[1763468557606,7.01944495,137.96,137.92,5.06]
[1763468557998,7.01944495,137.96,137.93,0.72]
[1763468558415,7.01944495,137.95,137.92,0.72]
[1763468558611,7.01944495,137.95,137.94,4.34]
[1763468559501,7.68944495,137.95,137.94,4.34]
[1763468562109,7.01944495,137.95,137.94,4.34]
[1763468562289,18.12096,137.98,137.94,4.34]
[1763468562497,7.01944495,137.98,137.95,0.68]
[1763468562997,7.01944495,137.98,137.94,4.34]
[1763468563192,7.01944495,137.97,137.94,5.02]
[1763468564519,7.01944495,137.98,137.94,5.02]
[1763468564718,7.01944495,137.99,137.95,0.68]
[1763468566344,7.01944495,138.0,137.95,7.69944495]
[1763468566632,107.04,138.06,137.96,4.34]
[1763468566633,7.01944495,137.99,137.96,4.34]
[1763468566821,0.68,138.03,137.96,4.34]
[1763468566822,7.01944495,137.98,137.96,4.34]
[1763468567195,7.01944495,137.98,137.96,5.02]
[1763468567512,7.01944495,137.98,137.93,88.14040495]
[1763468567817,7.01944495,137.98,137.94,5.02]
[1763468568119,7.01944495,137.97,137.94,5.02]
[1763468568323,7.01944495,137.98,137.94,5.02]
[1763468568494,7.01944495,137.97,137.94,5.02]
[1763468568899,7.01944495,137.97,137.95,0.68]
[1763468569101,7.01944495,137.98,137.95,0.68]
[1763468569402,7.01944495,137.99,137.95,0.68]
[1763468570698,7.01944495,138.0,137.95,7.69944495]
[1763468571115,7.01944495,138.0,137.96,0.68]
[1763468571308,7.01944495,138.02,137.97,4.34]
[1763468571515,7.01944495,138.0,137.97,4.34]
[1763468571713,7.01944495,138.01,137.97,4.34]
[1763468571914,7.01944495,138.01,137.98,5.02]
[1763468572114,7.01944495,138.0,137.98,4.34]
[1763468572500,7.01944495,137.99,137.98,4.34]
[1763468572815,4.21838085,138.0,137.98,4.34]
[1763468573215,18.12096,138.03,137.94,18.12096]
[1763468573216,4.21838085,137.99,137.94,18.12096]
[1763468573424,4.21838085,137.99,137.95,5.02]
[1763468573799,0.68,137.98,137.94,18.12096]
[1763468573999,4.21838085,137.96,137.9,4.21838085]
[1763468574207,4.21838085,137.96,137.93,0.68]
[1763468574409,4.21838085,137.97,137.94,4.34]
[1763468574609,4.89838085,137.98,137.94,4.34]
[1763468574896,11.75555563,137.98,137.94,4.34]
[1763468575126,12.43555563,137.98,137.94,5.02]
[1763468575626,11.75555563,137.99,137.95,0.68]
[1763468576103,11.75555563,138.0,137.95,0.68]
[1763468576303,11.75555563,137.99,137.92,18.12096]
[1763468576514,10.46882769,138.0,137.94,18.12096]
[1763468576722,11.75555563,137.98,137.94,18.12096]
[1763468576923,11.75555563,137.97,137.94,18.12096]
[1763468577207,11.75555563,137.97,137.93,5.02]
[1763468577415,11.75555563,137.97,137.94,0.68]
[1763468577728,11.75555563,137.97,137.93,5.02]
[1763468577923,12.43555563,137.97,137.93,4.34]
[1763468578422,11.75555563,137.97,137.93,5.02]
[1763468579001,12.43555563,137.97,137.93,5.02]